fUST/lending_fUST_20250610
["ID","MTS","AMOUNT","RATE_DAILY","PERIOD"]
[365207974,1749534635336,-472.42407138,0.00021095,4]
[365207975,1749534635345,-460.0,0.00021095,4]
[365207976,1749534635355,-445.36126045,0.00021095,4]
[365207977,1749534635366,-685.68,0.00021095,4]
[365207978,1749534635376,-460.0,0.00021095,4]
[365207979,1749534635385,-440.62918901,0.00021095,4]
[365207980,1749534635395,-450.82247336,0.00021095,4]
[365207981,1749534635405,-460.0,0.00021095,4]
[365207982,1749534635415,-284.13470896,0.00021095,4]
[365207983,1749534635424,-439.54914679,0.00021095,4]
[365207984,1749534635434,-460.0,0.00021095,4]
[365207985,1749534635444,-460.0,0.00021095,4]
[365207986,1749534635454,-460.0,0.00021095,4]
[365207987,1749534635463,-469.93902303,0.00021095,4]
[365207988,1749534635474,-444.72935504,0.00021095,4]
[365207989,1749534635483,-460.0,0.00021095,4]
[365207990,1749534635493,-3244.6,0.00021095,4]
[365207991,1749534635502,-460.0,0.00021095,4]
[365207992,1749534635512,-460.0,0.00021095,4]
[365207993,1749534635522,-460.0,0.00021095,4]
[365207994,1749534635532,-802.39,0.00021095,4]
[365207995,1749534635542,-460.0,0.00021095,4]
[365207996,1749534635551,-447.00336463,0.00021095,4]
[365207997,1749534635561,-793.87,0.00021095,4]
[365207998,1749534635571,-811.37,0.00021095,4]
[365207999,1749534635581,-438.52589127,0.00021095,4]
[365208000,1749534635591,-380.47384122,0.00021095,4]
[365208001,1749534635601,-460.0,0.00021095,4]
[365208002,1749534635611,-248.77329956,0.00021095,4]
[365208003,1749534635624,-460.0,0.00021095,4]
[365208004,1749534635634,-460.0,0.00021095,4]
[365208005,1749534635645,-460.0,0.00021095,4]
[365208006,1749534635656,-460.0,0.00021095,4]
[365208007,1749534635666,-460.0,0.00021095,4]
[365208008,1749534635675,-453.70968768,0.00021095,4]
[365208009,1749534635685,-460.0,0.00021095,4]
[365208010,1749534635697,-460.0,0.00021095,4]
[365208011,1749534635707,-460.0,0.00021095,4]
[365208012,1749534635716,-482.91088288,0.00021095,4]
[365208013,1749534635726,-460.0,0.00021095,4]
[365208014,1749534635735,-460.0,0.00021095,4]
[365208015,1749534635744,-460.0,0.00021095,4]
[365208016,1749534635754,-224.69993192,0.00021095,4]
[365208017,1749534635763,-460.0,0.00021095,4]
[365208018,1749534635773,-504.75632462,0.00021095,4]
[365208019,1749534635783,-460.0,0.00021095,4]
[365208020,1749534635792,-460.0,0.00021095,4]
[365208021,1749534635802,-380.0,0.00021095,4]
[365208022,1749534635812,-460.0,0.00021095,4]
[365208023,1749534635822,-450.65900903,0.00021095,4]
[365208024,1749534635832,-460.0,0.00021095,4]
[365208025,1749534635841,-509.53,0.00021095,4]
[365208026,1749534635851,-460.0,0.00021095,4]
[365208027,1749534635861,-460.0,0.00021095,4]
[365208028,1749534635870,-460.0,0.00021095,4]
[365208029,1749534635879,-297.47618959,0.00021095,4]
[365208030,1749534635889,-460.0,0.00021095,4]
[365208031,1749534635898,-441.34185954,0.00021095,4]
[365208032,1749534635908,-460.0,0.00021095,4]
[365208033,1749534635918,-460.0,0.00021095,4]
[365208034,1749534635928,-914.94,0.00021095,4]
[365208035,1749534635938,-443.99958034,0.00021095,4]
[365208036,1749534635947,-174.2433182,0.00021095,4]
[365208037,1749534635958,-460.0,0.00021095,4]
[365208038,1749534635968,-460.0,0.00021095,4]
[365208039,1749534635978,-460.0,0.00021095,4]
[365208040,1749534635987,-460.0,0.00021095,4]
[365208041,1749534635998,-447.42883138,0.00021095,4]
[365208042,1749534636007,-559.27070013,0.00021095,4]
[365208043,1749534636016,-460.0,0.00021095,4]
[365208044,1749534636026,-498.39994239,0.00021095,4]
[365208045,1749534636036,-573.81991623,0.00021095,4]
[365208046,1749534636046,-381.9098599,0.00021095,4]
[365208047,1749534636056,-459.00850197,0.00021095,4]
[365208048,1749534636065,-430.0,0.00021095,4]
[365208049,1749534636075,-426.54954192,0.00021095,4]
[365208050,1749534636085,-460.0,0.00021095,4]
[365208051,1749534636094,-460.0,0.00021095,4]
[365208052,1749534636104,-460.0,0.00021095,4]
[365208053,1749534636113,-350.0,0.00021095,2]
[365208054,1749534636123,-425.73233379,0.00021176,4]
[365208055,1749534636133,-452.66,0.000212,2]
[365208056,1749534636143,-425.73233379,0.00021314,5]
[365208057,1749534636153,-323.18644927,0.00021369,4]
[365208058,1749534636165,-460.0,0.00021369,4]
[365208059,1749534636175,-460.0,0.00021369,4]
[365208060,1749534636184,-400.0,0.00021369,4]
[365208061,1749534636194,-460.0,0.00021369,4]
[365208062,1749534636204,-460.0,0.00021369,4]
[365208063,1749534636213,-460.0,0.00021369,4]
[365208064,1749534636223,-460.0,0.00021369,4]
[365208065,1749534636233,-441.4,0.00021369,4]
[365208066,1749534636243,-428.35159727,0.00021369,4]
[365208067,1749534636252,-460.0,0.00021369,4]
[365208068,1749534636262,-460.0,0.00021369,4]
[365208069,1749534636272,-378.70065807,0.00021369,4]
[365208070,1749534636282,-468.42698468,0.00021369,4]
[365208071,1749534636292,-460.0,0.00021369,4]
[365208072,1749534636301,-460.0,0.00021369,4]
[365208073,1749534636311,-460.0,0.00021369,4]
[365208074,1749534636321,-482.47391769,0.00021369,4]
[365208075,1749534636330,-460.0,0.00021369,4]
[365208076,1749534636339,-460.0,0.00021369,4]
[365208077,1749534636349,-460.0,0.00021369,4]
[365208078,1749534636359,-460.0,0.00021369,4]
[365208079,1749534636369,-159.07789097,0.00021369,4]
[365208080,1749534636379,-521.63407693,0.00021369,4]
[365208081,1749534636388,-500.0,0.00021369,4]
[365208082,1749534636398,-415.21535527,0.00021369,4]
[365208083,1749534636410,-506.3843516,0.00021369,4]
[365208084,1749534636419,-390.0,0.00021369,4]
[365208085,1749534636429,-212.78272509,0.00021369,4]
[365208086,1749534636439,-460.0,0.00021369,4]
[365208087,1749534636449,-460.0,0.00021369,4]
[365208088,1749534636458,-498.57950911,0.00021369,4]
[365208089,1749534636468,-460.0,0.00021369,4]
[365208090,1749534636477,-460.0,0.00021369,4]
[365208091,1749534636487,-460.0,0.00021369,4]
[365208092,1749534636496,-460.0,0.00021369,4]
[365208093,1749534636505,-460.0,0.00021369,4]
[365208094,1749534636515,-460.0,0.00021369,4]
[365208095,1749534636525,-460.0,0.00021369,4]
[365208096,1749534636535,-400.0,0.00021369,4]
[365208097,1749534636544,-460.0,0.00021369,4]
[365208098,1749534636554,-460.0,0.00021369,4]
[365208099,1749534636564,-422.69359754,0.00021369,4]
[365208100,1749534636573,-460.0,0.00021369,4]
[365208101,1749534636583,-460.0,0.00021369,4]
[365208102,1749534636593,-411.78910029,0.00021369,4]
[365208103,1749534636603,-460.0,0.00021369,4]
[365208104,1749534636613,-460.0,0.00021369,4]
[365208105,1749534636625,-460.0,0.00021369,4]
[365208106,1749534636635,-460.0,0.00021369,4]
[365208107,1749534636645,-460.0,0.00021369,4]
[365208108,1749534636660,-460.0,0.00021369,4]
[365208109,1749534636670,-460.0,0.00021369,4]
[365208110,1749534636680,-460.0,0.00021369,4]
[365208111,1749534636689,-432.472781,0.00021369,4]
[365208112,1749534636701,-460.0,0.00021369,4]
[365208113,1749534636711,-460.0,0.00021369,4]
[365208114,1749534636721,-460.0,0.00021369,4]
[365208115,1749534636731,-460.0,0.00021369,4]
[365208116,1749534636741,-460.0,0.00021369,4]
[365208117,1749534636751,-502.2059424,0.00021369,4]
[365208118,1749534636761,-412.87495642,0.00021369,4]
[365208119,1749534636771,-460.0,0.00021369,4]
[365208120,1749534636781,-261.63049937,0.00021369,4]
[365208121,1749534636791,-460.0,0.00021369,4]
[365208122,1749534636800,-460.0,0.00021369,4]
[365208123,1749534636812,-460.0,0.00021369,4]
[365208124,1749534636822,-460.0,0.00021369,4]
[365208125,1749534636832,-460.0,0.00021369,4]
[365208126,1749534636841,-406.50910785,0.00021369,4]
[365208127,1749534636852,-384.9233337,0.00021369,4]
[365208128,1749534636862,-460.0,0.00021369,4]
[365208129,1749534636872,-400.0,0.00021369,4]
[365208130,1749534636882,-435.4644235,0.00021369,4]
[365208131,1749534636891,-482.15247334,0.00021369,4]
[365208132,1749534636901,-439.89773573,0.00021369,4]
[365208133,1749534636911,-415.69948605,0.00021369,4]
[365208134,1749534636921,-460.0,0.00021369,4]
[365208135,1749534636930,-460.0,0.00021369,4]
[365208136,1749534636939,-460.0,0.00021369,4]
[365208137,1749534636950,-460.0,0.00021369,4]
[365208138,1749534636959,-540.49588229,0.00021369,4]
[365208139,1749534636969,-529.16803782,0.00021369,4]
[365208140,1749534636978,-460.0,0.00021369,4]
[365208141,1749534636988,-400.0,0.00021369,4]
[365208142,1749534636998,-424.87215698,0.00021369,4]
[365208143,1749534637007,-460.0,0.00021369,4]
[365208144,1749534637018,-460.0,0.00021369,4]
[365208145,1749534637028,-213.89401157,0.00021369,4]
[365208146,1749534637042,-460.0,0.00021369,4]
[365208147,1749534637053,-460.0,0.00021369,4]
[365208148,1749534637063,-460.0,0.00021369,4]
[365208149,1749534637073,-460.0,0.00021369,4]
[365208150,1749534637083,-460.0,0.00021369,4]
[365208151,1749534637092,-483.8546327,0.00021369,4]
[365208152,1749534637102,-460.0,0.00021369,4]
[365208153,1749534637111,-460.0,0.00021369,4]
[365208154,1749534637121,-460.0,0.00021369,4]
[365208155,1749534637130,-460.0,0.00021369,4]
[365208156,1749534637140,-460.0,0.00021369,4]
[365208157,1749534637149,-460.0,0.00021369,4]
[365208158,1749534637160,-460.0,0.00021369,4]
[365208159,1749534637169,-435.06833737,0.00021369,4]
[365208160,1749534637179,-460.0,0.00021369,4]
[365208161,1749534637188,-460.0,0.00021369,4]
[365208162,1749534637198,-460.0,0.00021369,4]
[365208163,1749534637207,-460.0,0.00021369,4]
[365208164,1749534637216,-1048.57,0.00021369,4]
[365208165,1749534637226,-460.0,0.00021369,4]
[365208166,1749534637235,-182.36,0.00021369,4]
[365208167,1749534637247,-460.0,0.00021369,4]
[365208168,1749534637259,-428.45471386,0.00021369,4]
[365208169,1749534637268,-460.0,0.00021369,4]
[365208170,1749534637277,-460.0,0.00021369,4]
[365208171,1749534637287,-460.0,0.00021369,4]
[365208172,1749534637390,-401.05624937,0.00021369,4]
[365208173,1749534637400,-460.0,0.00021369,4]
[365208174,1749534637410,-460.0,0.00021369,4]
[365208175,1749534637421,-460.0,0.00021369,4]
[365208176,1749534637430,-460.0,0.00021369,4]
[365208177,1749534637440,-346.66228101,0.00021369,4]
[365208178,1749534637449,-460.0,0.00021369,2]
[365208179,1749534637459,-460.0,0.00021369,4]
[365208180,1749534637468,-332.72767989,0.00021369,4]
[365208181,1749534637478,-460.0,0.00021369,4]
[365208182,1749534637487,-654.44,0.00021369,4]
[365208183,1749534637496,-460.0,0.00021369,4]
[365208184,1749534637506,-460.0,0.00021369,4]
[365208185,1749534637515,-417.58325611,0.00021369,4]
[365208186,1749534637525,-150.84769655,0.00021369,4]
[365208187,1749534637535,-350.0,0.00021369,4]
[365208188,1749534637545,-460.0,0.00021369,4]
[365208189,1749534637555,-460.0,0.00021369,4]
[365208190,1749534637564,-460.0,0.00021369,4]
[365208191,1749534637574,-460.0,0.00021369,4]
[365208192,1749534637583,-685.68,0.00021369,4]
[365208193,1749534637592,-460.0,0.00021369,4]
[365208194,1749534637602,-460.0,0.00021369,4]
[365208195,1749534637611,-350.4780944,0.00021369,4]
[365208196,1749534637626,-460.0,0.00021369,4]
[365208197,1749534637636,-410.0,0.00021369,4]
[365208198,1749534637645,-460.0,0.00021369,4]
[365208199,1749534637655,-3244.6,0.00021369,4]
[365208200,1749534637665,-460.0,0.00021369,4]
[365208201,1749534637675,-394.02466216,0.00021369,4]
[365208202,1749534637684,-460.0,0.00021369,4]
[365208203,1749534637695,-151.0,0.00021369,4]
[365208204,1749534637705,-151.0,0.00021369,4]
[365208205,1749534637714,-802.39,0.00021369,4]
[365208206,1749534637724,-460.0,0.00021369,4]
[365208207,1749534637733,-793.87,0.00021369,4]
[365208208,1749534637742,-811.37,0.00021369,4]
[365208209,1749534637752,-460.0,0.00021369,4]
[365208210,1749534637761,-460.0,0.00021369,4]
[365208211,1749534637771,-460.0,0.00021369,4]
[365208212,1749534637781,-460.0,0.00021369,4]
[365208213,1749534637790,-460.0,0.00021369,4]
[365208214,1749534637800,-460.0,0.00021369,4]
[365208215,1749534637810,-460.0,0.00021369,4]
[365208216,1749534637819,-440.0,0.00021369,4]
[365208217,1749534637829,-324.0166995,0.00021369,4]
[365208218,1749534637838,-460.0,0.00021369,4]
[365208219,1749534637848,-441.96012296,0.00021369,4]
[365208220,1749534637858,-460.0,0.00021369,4]
[365208221,1749534637869,-460.0,0.00021369,4]
[365208222,1749534637878,-261.76,0.00021369,4]
[365208223,1749534637888,-460.0,0.00021369,4]
[365208224,1749534637898,-460.0,0.00021369,4]
[365208225,1749534637908,-286.7228238,0.00021369,4]
[365208226,1749534637917,-509.53,0.00021369,4]
[365208227,1749534637926,-460.0,0.00021369,4]
[365208228,1749534637936,-460.0,0.00021369,4]
[365208229,1749534637946,-430.0,0.00021369,4]
[365208230,1749534637955,-460.0,0.00021369,4]
[365208231,1749534637964,-460.0,0.00021369,4]
[365208232,1749534637974,-460.0,0.00021369,4]
[365208233,1749534637983,-914.94,0.00021369,4]
[365208234,1749534637993,-460.0,0.00021369,4]
[365208235,1749534638002,-460.0,0.00021369,4]
[365208236,1749534638011,-460.0,0.00021369,4]
[365208237,1749534638020,-460.0,0.00021369,4]
[365208238,1749534638029,-460.0,0.00021369,4]
[365208239,1749534638038,-460.0,0.00021369,4]
[365208241,1749534638047,-400.0,0.00021369,4]
[365208242,1749534638058,-460.0,0.00021369,4]
[365208243,1749534638067,-500.0,0.00021396,4]
[365208244,1749534638076,-253.00852025,0.00021396,4]
[365208245,1749534638085,-151.0,0.00021396,4]
[365208246,1749534638095,-242.83699108,0.0002141,2]
[365208269,1749534638705,-350.0,0.00021369,2]
[365208270,1749534638715,-257.16300892,0.0002141,2]
[365208271,1749534638725,-500.0,0.00021424,4]
[365208272,1749534638734,-151.0,0.00021424,4]
[365208273,1749534638744,-531.45076374,0.00021446,2]
[365208274,1749534638753,-500.0,0.00021451,4]
[365208275,1749534638763,-194.9397701,0.00021451,4]
[365208276,1749534638773,-425.73233379,0.00021452,5]
[365208277,1749534638782,-500.0,0.00021479,4]
[365208278,1749534638792,-500.0,0.00021491,2]
[365208279,1749534638801,-500.0,0.00021506,4]
[365208280,1749534638811,-500.0,0.00021533,4]
[365208281,1749534638820,-1918.7257074,0.00021543,2]
[365208282,1749534638830,-500.0,0.00021561,4]
[365208283,1749534638839,-500.0,0.00021588,4]
[365208284,1749534638849,-425.73233379,0.0002159,5]
[365208285,1749534638857,-500.0,0.00021616,4]
[365208286,1749534638867,-500.0,0.00021621,2]
[365208287,1749534638876,-500.0,0.00021621,2]
[365208288,1749534638886,-1285.98168519,0.0002164,2]
[365208289,1749534638895,-500.0,0.00021643,4]
[365208290,1749534638905,-460.0,0.00021643,4]
[365208291,1749534638915,-460.0,0.00021643,4]
[365208292,1749534638924,-166.6274282,0.00021643,4]
[365208293,1749534638933,-567.61919221,0.00021643,4]
[365208294,1749534638942,-460.0,0.00021643,4]
[365208295,1749534638952,-201.27473128,0.00021643,4]
[365208296,1749534638962,-398.29188385,0.00021643,4]
[365208297,1749534638971,-460.0,0.00021643,4]
[365208298,1749534638980,-422.72188227,0.00021643,4]
[365208299,1749534638990,-460.0,0.00021643,4]
[365208300,1749534639000,-460.0,0.00021643,4]
[365208301,1749534639009,-460.0,0.00021643,4]
[365208302,1749534639019,-460.0,0.00021643,4]
[365208303,1749534639028,-426.36435969,0.00021643,4]
[365208304,1749534639037,-452.80176838,0.00021643,4]
[365208305,1749534639047,-460.0,0.00021643,4]
[365208306,1749534639056,-460.0,0.00021643,4]
[365208307,1749534639065,-460.0,0.00021643,4]
[365208308,1749534639075,-460.0,0.00021643,4]
[365208309,1749534639084,-460.0,0.00021643,4]
[365208310,1749534639094,-460.0,0.00021643,4]
[365208311,1749534639103,-391.03113077,0.00021643,4]
[365208312,1749534639113,-460.0,0.00021643,4]
[365208313,1749534639123,-460.0,0.00021643,4]
[365208314,1749534639132,-412.43505789,0.00021643,4]
[365208315,1749534639142,-397.56767647,0.00021643,4]
[365208316,1749534639152,-460.0,0.00021643,4]
[365208317,1749534639164,-460.0,0.00021643,4]
[365208318,1749534639174,-360.0,0.00021643,4]
[365208319,1749534639184,-402.16245737,0.00021643,4]
[365208320,1749534639194,-300.7026197,0.00021643,4]
[365208321,1749534639204,-460.0,0.00021643,4]
[365208322,1749534639214,-460.0,0.00021643,4]
[365208323,1749534639224,-460.0,0.00021643,4]
[365208324,1749534639233,-460.0,0.00021643,4]
[365208325,1749534639242,-340.0,0.00021643,4]
[365208326,1749534639251,-460.0,0.00021643,4]
[365208327,1749534639261,-460.0,0.00021643,4]
[365208328,1749534639272,-460.0,0.00021643,4]
[365208329,1749534639281,-460.0,0.00021643,4]
[365208330,1749534639290,-460.0,0.00021643,4]
[365208331,1749534639300,-460.0,0.00021643,4]
[365208332,1749534639311,-460.0,0.00021643,4]
[365208333,1749534639320,-460.0,0.00021643,4]
[365208334,1749534639330,-460.0,0.00021643,4]
[365208335,1749534639339,-460.0,0.00021643,4]
[365208336,1749534639349,-460.0,0.00021643,4]
[365208337,1749534639359,-357.33191295,0.00021643,4]
[365208338,1749534639369,-418.1911264,0.00021643,4]
[365208339,1749534639378,-460.0,0.00021643,4]
[365208340,1749534639397,-460.0,0.00021643,4]
[365208341,1749534639408,-460.0,0.00021643,4]
[365208342,1749534639418,-460.0,0.00021643,4]
[365208343,1749534639428,-350.0,0.00021643,4]
[365208344,1749534639438,-460.0,0.00021643,4]
[365208345,1749534639448,-360.0,0.00021643,4]
[365208346,1749534639457,-460.0,0.00021643,4]
[365208347,1749534639467,-460.0,0.00021643,4]
[365208348,1749534639476,-296.81100998,0.00021643,4]
[365208349,1749534639486,-460.0,0.00021643,4]
[365208350,1749534639495,-371.42446355,0.00021643,4]
[365208351,1749534639504,-460.0,0.00021643,4]
[365208352,1749534639514,-460.0,0.00021643,4]
[365208353,1749534639523,-460.0,0.00021643,4]
[365208354,1749534639534,-380.0,0.00021643,4]
[365208355,1749534639543,-460.0,0.00021643,4]
[365208356,1749534639552,-460.0,0.00021643,4]
[365208357,1749534639562,-320.0,0.00021643,4]
[365208358,1749534639571,-460.0,0.00021643,4]
[365208359,1749534639581,-480.69324064,0.00021643,4]
[365208360,1749534639591,-1048.57,0.00021643,4]
[365208361,1749534639600,-460.0,0.00021643,4]
[365208362,1749534639610,-460.0,0.00021643,4]
[365208363,1749534639622,-460.0,0.00021643,4]
[365208364,1749534639631,-460.0,0.00021643,4]
[365208365,1749534639641,-179.90228974,0.00021643,4]
[365208366,1749534639650,-460.0,0.00021643,4]
[365208367,1749534639663,-460.0,0.00021643,4]
[365208368,1749534639672,-440.0,0.00021643,4]
[365208369,1749534639681,-593.25,0.00021643,4]
[365208370,1749534639691,-460.0,0.00021643,2]
[365208371,1749534639700,-421.38059154,0.00021643,4]
[365208372,1749534639709,-456.98,0.00021643,4]
[365208373,1749534639719,-654.44,0.00021643,4]
[365208374,1749534639728,-460.0,0.00021643,4]
[365208375,1749534639737,-394.09477188,0.00021643,4]
[365208376,1749534639747,-460.0,0.00021643,4]
[365208377,1749534639757,-460.0,0.00021643,4]
[365208378,1749534639766,-460.0,0.00021643,4]
[365208379,1749534639777,-370.0,0.00021643,4]
[365208380,1749534639787,-685.68,0.00021643,4]
[365208381,1749534639796,-460.0,0.00021643,4]
[365208382,1749534639806,-460.0,0.00021643,4]
[365208383,1749534639815,-460.0,0.00021643,4]
[365208384,1749534639825,-460.0,0.00021643,4]
[365208385,1749534639834,-3244.6,0.00021643,4]
[365208386,1749534639852,-460.0,0.00021643,4]
[365208387,1749534639865,-460.0,0.00021643,4]
[365208388,1749534639874,-802.39,0.00021643,4]
[365208389,1749534639884,-460.0,0.00021643,4]
[365208390,1749534639894,-793.87,0.00021643,4]
[365208391,1749534639905,-811.37,0.00021643,4]
[365208392,1749534639916,-294.80128234,0.00021643,4]
[365208394,1749534639925,-460.0,0.00021643,4]
[365208395,1749534639935,-368.97286628,0.00021643,4]
[365208396,1749534639946,-460.0,0.00021643,4]
[365208397,1749534639956,-400.5806873,0.00021643,4]
[365208398,1749534639966,-439.17301178,0.00021643,4]
[365208399,1749534640108,-460.0,0.00021643,4]
[365208400,1749534640118,-405.5047205,0.00021643,4]
[365208401,1749534640129,-370.0,0.00021643,4]
[365208402,1749534640139,-460.0,0.00021643,4]
[365208403,1749534640148,-460.0,0.00021643,4]
[365208405,1749534640158,-460.0,0.00021643,4]
[365208406,1749534640168,-509.53,0.00021643,4]
[365208407,1749534640178,-460.0,0.00021643,4]
[365208408,1749534640188,-499.06858718,0.00021643,4]
[365208409,1749534640198,-460.0,0.00021643,4]
[365208410,1749534640207,-460.0,0.00021643,4]
[365208411,1749534640217,-460.0,0.00021643,4]
[365208412,1749534640227,-914.94,0.00021643,4]
[365208413,1749534640237,-505.45702426,0.00021643,4]
[365208414,1749534640247,-460.0,0.00021643,4]
[365208415,1749534640257,-460.0,0.00021643,4]
[365208416,1749534640267,-432.97077124,0.00021643,4]
[365208417,1749534640277,-460.0,0.00021643,4]
[365208418,1749534640287,-460.0,0.00021643,4]
[365208419,1749534640296,-460.0,0.00021643,4]
[365208420,1749534640306,-350.0,0.00021643,2]
[365208421,1749534640315,-311.09001568,0.0002167,4]
[365208422,1749534640323,-213.1263252,0.00021702,2]
[365208423,1749534640332,-160.0,0.00021702,2]
[365208424,1749534640341,-842.5625,0.00021702,2]
[365208425,1749534640350,-160.0,0.00021702,2]
[365208426,1749534640359,-424.12530924,0.00021702,2]
[365208427,1749534640368,-229.6792923,0.00021702,2]
[365208428,1749534640377,-834.9046531,0.00021702,2]
[365208429,1749534640387,-160.0,0.00021702,2]
[365208430,1749534640396,-160.0,0.00021702,2]
[365208431,1749534640405,-160.0,0.00021717,2]
[365208432,1749534640415,-425.73233379,0.00021728,5]
[365208433,1749534640424,-1234.0,0.0002181,7]
[365208434,1749534640433,-425.73233379,0.00021866,6]
[365208435,1749534640443,-460.0,0.00021917,4]
[365208436,1749534640452,-186.70224542,0.00021917,4]
[365208437,1749534640461,-460.0,0.00021917,4]
[365208438,1749534640471,-460.0,0.00021917,4]
[365208439,1749534640480,-460.0,0.00021917,4]
[365208440,1749534640490,-460.0,0.00021917,4]
[365208441,1749534640499,-408.20320171,0.00021917,4]
[365208442,1749534640509,-382.86435403,0.00021917,4]
[365208443,1749534640519,-460.0,0.00021917,4]
[365208444,1749534640530,-460.0,0.00021917,4]
[365208445,1749534640540,-198.4389094,0.00021917,4]
[365208446,1749534640549,-460.0,0.00021917,4]
[365208447,1749534640560,-380.16860411,0.00021917,4]
[365208448,1749534640570,-460.0,0.00021917,4]
[365208449,1749534640580,-460.0,0.00021917,4]
[365208450,1749534640590,-460.0,0.00021917,4]
[365208451,1749534640600,-460.0,0.00021917,4]
[365208452,1749534640611,-410.28330677,0.00021917,4]
[365208453,1749534640623,-460.0,0.00021917,4]
[365208454,1749534640633,-488.01460355,0.00021917,4]
[365208455,1749534640643,-380.0,0.00021917,4]
[365208456,1749534640652,-385.03576064,0.00021917,4]
[365208457,1749534640663,-528.45698794,0.00021917,4]
[365208458,1749534640672,-460.0,0.00021917,4]
[365208459,1749534640681,-460.0,0.00021917,4]
[365208460,1749534640693,-460.0,0.00021917,4]
[365208461,1749534640702,-442.64261384,0.00021917,4]
[365208462,1749534640712,-460.0,0.00021917,4]
[365208463,1749534640721,-200.0,0.00021917,4]
[365208464,1749534640731,-460.0,0.00021917,4]
[365208465,1749534640741,-460.0,0.00021917,4]
[365208466,1749534640751,-380.0,0.00021917,4]
[365208467,1749534640760,-350.23895878,0.00021917,4]
[365208468,1749534640769,-358.80372629,0.00021917,4]
[365208469,1749534640779,-340.0,0.00021917,4]
[365208470,1749534640788,-460.0,0.00021917,4]
[365208471,1749534640798,-460.0,0.00021917,4]
[365208472,1749534640808,-460.0,0.00021917,4]
[365208473,1749534640818,-460.0,0.00021917,4]
[365208474,1749534640828,-460.0,0.00021917,4]
[365208475,1749534640838,-380.0,0.00021917,4]
[365208476,1749534640847,-460.0,0.00021917,4]
[365208477,1749534640857,-340.0,0.00021917,4]
[365208478,1749534640866,-380.0,0.00021917,4]
[365208479,1749534640876,-460.0,0.00021917,4]
[365208480,1749534640886,-460.0,0.00021917,4]
[365208481,1749534640895,-460.0,0.00021917,4]
[365208482,1749534640905,-1048.57,0.00021917,4]
[365208483,1749534640915,-460.0,0.00021917,4]
[365208484,1749534640925,-380.0,0.00021917,4]
[365208485,1749534640934,-460.0,0.00021917,4]
[365208486,1749534640943,-460.0,0.00021917,4]
[365208487,1749534640952,-460.0,0.00021917,4]
[365208488,1749534640961,-460.0,0.00021917,4]
[365208489,1749534640970,-460.0,0.00021917,2]
[365208490,1749534640980,-654.44,0.00021917,4]
[365208491,1749534640989,-151.74971962,0.00021917,4]
[365208492,1749534640998,-341.96190903,0.00021917,4]
[365208493,1749534641007,-460.0,0.00021917,4]
[365208494,1749534641016,-460.0,0.00021917,4]
[365208495,1749534641026,-685.68,0.00021917,4]
[365208496,1749534641035,-460.0,0.00021917,4]
[365208497,1749534641045,-520.4958576,0.00021917,4]
[365208498,1749534641054,-460.0,0.00021917,4]